fUSD/lending_fUSD_20250104
["ID","MTS","AMOUNT","RATE_DAILY","PERIOD"]
[347626917,1735978233860,-400.0,0.00010986,2]
[347626918,1735978233870,-1099.43580168,0.00010987,2]
[347626919,1735978233881,-12983.83308301,0.00010988,2]
[347626920,1735978233892,-12983.83308301,0.00010989,2]
[347626921,1735978233901,-52950.41105347,0.0001099,2]
[347626922,1735978233915,-1062.46856563,0.0001099,2]
[347626923,1735978237944,-4623.83606314,0.0001099,2]
[347626924,1735978237956,-5104.097172,0.0001099,2]
[347626925,1735978237967,-7702.8642812,0.0001099,2]
[347626926,1735978238001,-854.88389292,0.0001099,2]
[347626939,1735978239827,-20507.13969972,0.0001099,2]
[347626940,1735978239881,-10598.25405389,0.0001099,2]
[347626941,1735978242537,-1103.0,0.00010449,2]
[347626942,1735978242548,-500.0,0.00010545,2]
[347626943,1735978242557,-18.70999997,0.0001099,2]
[347626944,1735978242593,-764.75220241,0.0001099,2]
[347626945,1735978242646,-2485.58710245,0.0001099,2]
[347626946,1735978242701,-500.0,0.00010819,2]
[347626947,1735978242710,-16295.2913419,0.0001099,2]
[347626948,1735978242722,-941.68,0.0001099,2]
[347626950,1735978242910,-2312.66023941,0.0001099,2]
[347626951,1735978242949,-17.06687258,0.0001099,2]
[347626952,1735978243070,-5022.75,0.0001099,2]
[347626953,1735978243081,-2116.97344522,0.0001099,2]
[347626960,1735978245757,-1042.23614475,0.0001099,2]
[347626961,1735978245787,-479.66,0.0001099,2]
[347626962,1735978245836,-6124.46201189,0.0001099,2]
[347626963,1735978245945,-42861.59259314,0.0001099,2]
[347626964,1735978245955,-2369.49743374,0.0001099,2]
[347626965,1735978245964,-20349.09808244,0.00010991,2]
[347626966,1735978245976,-74258.67162771,0.00010991,2]
[347626967,1735978245986,-94607.76971015,0.00010991,2]
[347626968,1735978245996,-5855.24091344,0.00010991,2]
[347626969,1735978246005,-10476.42416843,0.00010991,2]
[347626970,1735978246052,-963.52268,0.00010991,2]
[347626971,1735978291283,150.0,0.00018837,120]
[347626972,1735978411012,150.0,0.00018909,120]
[347626974,1735978591439,150.0,0.00019814,120]
[347626975,1735978651274,150.0,0.00019995,120]
[347626976,1735978777862,30001.10902644,0.0001102,13]
[347626977,1735978853427,589.01,8e-05,2]
[347626978,1735978878443,-9515.0,8e-05,2]
[347626979,1735978935601,28954.9537347,7.1e-05,2]
[347627011,1735979432203,-643.39,8.219e-05,2]
[347627012,1735979432213,-830.99,9.276e-05,2]
[347627013,1735979432223,-150.0,9.465e-05,2]
[347627014,1735979432233,-300.0,9.774e-05,2]
[347627015,1735979432242,-22486.95,9.775e-05,2]
[347627016,1735979432252,-594.31,9.782e-05,2]
[347627017,1735979432261,-150.0,9.797e-05,2]
[347627018,1735979432270,-150.0,9.823e-05,2]
[347627019,1735979432280,-150.0,9.829e-05,2]
[347627020,1735979432289,-250.0,9.853e-05,2]
[347627021,1735979432299,-250.0,9.858e-05,2]
[347627022,1735979432308,-1000.0,9.861e-05,2]
[347627023,1735979432317,-150.0,9.903e-05,2]
[347627024,1735979432326,-831.47,9.921e-05,2]
[347627025,1735979432336,-200.0,9.935e-05,2]
[347627026,1735979432345,-462.96960848,9.967e-05,2]
[347627027,1735979432354,-584.69389566,9.967e-05,2]
[347627028,1735979432363,-500.0,9.973e-05,2]
[347627029,1735979432372,-500.0,9.973e-05,2]
[347627030,1735979432381,-150.0,9.973e-05,2]
[347627031,1735979432390,-59622.81313868,9.997e-05,2]
[347627032,1735979432401,-949.94196682,9.997e-05,2]
[347627033,1735979432412,-550.05803318,9.997e-05,2]
[347627034,1735979432444,-612.23105833,9.997e-05,2]
[347627035,1735979432462,-74461.54016665,9.997e-05,2]
[347627036,1735979432482,-10395.15865238,9.997e-05,2]
[347627037,1735979437891,-226.33,9.871e-05,2]
[347627038,1735979437900,-224.72164195,9.996e-05,2]
[347627039,1735979437911,-9377.04835805,9.997e-05,2]
[347627040,1735979438017,-72565.06582902,9.997e-05,2]
[347627041,1735979438250,-31159.93385217,9.997e-05,2]
[347627042,1735979438268,-1360.72366522,9.997e-05,2]
[347627043,1735979438279,-654.06454835,9.997e-05,2]
[347627045,1735979438290,-1910.04,9.997e-05,2]
[347627047,1735979440164,-2017.15077512,9.997e-05,2]
[347627048,1735979440297,-267.2159813,9.997e-05,2]
[347627061,1735979443109,-14208.67603151,9.997e-05,2]
[347627062,1735979443121,-628.211996,9.997e-05,2]
[347627063,1735979443134,-3379.14496075,9.997e-05,2]
[347627064,1735979443168,-1302.1840501,9.997e-05,2]
[347627065,1735979443180,-1838.3197628,9.997e-05,2]
[347627066,1735979443236,-578352.16587798,9.997e-05,2]
[347627067,1735979443247,-26399.99999789,9.997e-05,2]
[347627068,1735979443298,-500.0,9.997e-05,2]
[347627069,1735979443309,-3520.103004,9.997e-05,2]
[347627070,1735979443350,-68106.84587931,9.997e-05,2]
[347627071,1735979443409,-812657.04410094,9.997e-05,2]
[347627072,1735979443418,-192694.0864783,9.998e-05,2]
[347627073,1735979443428,-9119.27376543,9.998e-05,2]
[347627074,1735979443439,-17427.93055533,9.998e-05,2]
[347627075,1735979443449,-500.0,9.999e-05,2]
[347627076,1735979443458,-500.0,9.999e-05,2]
[347627077,1735979443467,-500.0,9.999e-05,2]
[347627078,1735979443478,-500.0,9.999e-05,2]
[347627079,1735979443490,-500.0,9.999e-05,2]
[347627080,1735979443500,-500.0,9.999e-05,2]
[347627081,1735979443510,-500.0,9.999e-05,2]
[347627082,1735979443520,-500.0,9.999e-05,2]
[347627083,1735979443531,-500.0,9.999e-05,2]
[347627084,1735979443541,-250.72,9.999e-05,2]
[347627085,1735979443551,-3073.52293046,0.0001,2]
[347627086,1735979443562,-637.53068574,0.0001,2]
[347627087,1735979443571,-751823.17927991,0.0001,2]
[347627095,1735979445996,-7921.11433446,9.909e-05,2]
[347627096,1735979446008,-1819.17932401,9.909e-05,2]
[347627097,1735979446020,-354.3283528,9.909e-05,2]
[347627098,1735979446030,-399.91131291,9.999e-05,2]
[347627099,1735979446040,-500.0,9.999e-05,2]
[347627100,1735979446050,-3721.28969743,0.0001,2]
[347627101,1735979446140,-181969.33869484,0.0001,2]
[347627102,1735979446152,-346.185,0.0001,2]
[347627103,1735979446163,-752.6332,0.0001,2]
[347627104,1735979446174,-273.75205,0.0001,2]
[347627105,1735979446258,-502.32833398,0.0001,2]
[347627110,1735980011043,1152.61543399,0.0002,120]
[347627115,1735980632209,-637.82,8.219e-05,2]
[347627116,1735980632221,-354.92370002,8.801e-05,7]
[347627117,1735980632232,-47345.36930178,8.801e-05,7]
[347627118,1735980632242,-21976.71462512,8.801e-05,7]
[347627119,1735980632320,-1211.3,8.801e-05,7]
[347627120,1735980632376,-12549.17514802,8.801e-05,7]
[347627121,1735980632435,-37424.22844776,8.801e-05,7]
[347627122,1735980632444,-691.82,8.862e-05,2]
[347627123,1735980632456,-250.0,8.932e-05,2]
[347627124,1735980632467,-11.6802277,8.946e-05,2]
[347627125,1735980632479,-327.1797723,8.946e-05,2]
[347627126,1735980632488,-500.0,8.959e-05,2]
[347627127,1735980632498,-1000.0,8.986e-05,2]
[347627128,1735980632507,-150.0,9e-05,2]
[347627129,1735980632517,-150.0,9.068e-05,2]
[347627130,1735980632526,-500.0,9.342e-05,2]
[347627131,1735980632536,-452.0,9.37e-05,2]
[347627132,1735980632546,-1935.0,9.414e-05,2]
[347627133,1735980632555,-1537.16,9.67e-05,2]
[347627134,1735980632565,-4742.418,9.799e-05,2]
[347627135,1735980632574,-200.0,9.84e-05,2]
[347627136,1735980632584,-304.71355646,9.898e-05,2]
[347627137,1735980632593,-611.37402217,9.898e-05,2]
[347627138,1735980632602,-500.0,9.898e-05,2]
[347627140,1735980632611,-500.40516722,9.898e-05,2]
[347627142,1735980632621,-501.06022197,9.898e-05,2]
[347627144,1735980632631,-502.07028179,9.898e-05,2]
[347627145,1735980632640,-500.0,9.898e-05,2]
[347627146,1735980632649,-500.37600263,9.898e-05,2]
[347627147,1735980632658,-501.50284588,9.898e-05,2]
[347627149,1735980632667,-503.4619418,9.898e-05,2]
[347627150,1735980632676,-500.0,9.898e-05,2]
[347627151,1735980632685,-501.37751107,9.898e-05,2]
[347627152,1735980632694,-500.99204811,9.898e-05,2]
[347627153,1735980632704,-621.97885552,9.898e-05,2]
[347627154,1735980632713,-502.80202421,9.898e-05,2]
[347627155,1735980632724,-503.00692469,9.898e-05,2]
[347627156,1735980632734,-500.81245417,9.898e-05,2]
[347627158,1735980632744,-507.50180573,9.898e-05,2]
[347627159,1735980632753,-501.49305795,9.898e-05,2]
[347627161,1735980632762,-500.0,9.898e-05,2]
[347627163,1735980632771,-502.20081016,9.898e-05,2]
[347627164,1735980632781,-500.89569115,9.898e-05,2]
[347627166,1735980632790,-501.37987764,9.898e-05,2]
[347627167,1735980632799,-502.09523375,9.898e-05,2]
[347627168,1735980632811,-500.0,9.898e-05,2]
[347627169,1735980632821,-501.16452613,9.898e-05,2]
[347627170,1735980632830,-500.0,9.898e-05,2]
[347627171,1735980632841,-502.17186647,9.898e-05,2]
[347627172,1735980632857,-501.42901297,9.898e-05,2]
[347627173,1735980632875,-500.0,9.898e-05,2]
[347627174,1735980632884,-501.42788874,9.898e-05,2]
[347627175,1735980632894,-501.38911777,9.898e-05,2]
[347627176,1735980632904,-500.84901607,9.898e-05,2]
[347627177,1735980632913,-569.89573177,9.898e-05,2]
[347627178,1735980632923,-500.89917465,9.898e-05,2]
[347627179,1735980632932,-526.08623902,9.898e-05,2]
[347627180,1735980632942,-85219.1251,9.899e-05,2]
[347627181,1735980632952,-5000.0,9.899e-05,2]
[347627182,1735980632961,-1013.0843,9.9e-05,2]
[347627183,1735980632971,-500.0,9.973e-05,2]
[347627184,1735980632981,-500.0,9.973e-05,2]
[347627185,1735980632990,-231.98464702,9.996e-05,2]
[347627186,1735980632999,-500.0,9.996e-05,2]
[347627187,1735980633008,-500.0,9.996e-05,2]
[347627188,1735980633017,-500.0,9.996e-05,2]
[347627189,1735980633027,-500.0,9.997e-05,2]
[347627190,1735980633038,-500.0,9.997e-05,2]
[347627191,1735980633048,-500.0,9.997e-05,2]
[347627192,1735980633057,-500.0,9.997e-05,2]
[347627193,1735980633066,-240.82738091,9.997e-05,2]
[347627194,1735980633076,-500.0,9.997e-05,2]
[347627195,1735980633085,-500.0,9.997e-05,2]
[347627196,1735980633095,-1026.49,9.997e-05,2]
[347627197,1735980633105,-500.0,9.997e-05,2]
[347627198,1735980633115,-500.0,9.997e-05,2]
[347627199,1735980633124,-500.0,9.997e-05,2]
[347627200,1735980633133,-785.9,9.997e-05,2]
[347627201,1735980633143,-500.0,9.997e-05,2]
[347627202,1735980633152,-656.54,9.997e-05,2]
[347627203,1735980633162,-732.15,9.997e-05,2]
[347627204,1735980633172,-500.0,9.997e-05,2]
[347627205,1735980633182,-533.06,9.997e-05,2]
[347627206,1735980633192,-500.0,9.997e-05,2]
[347627207,1735980633202,-500.0,9.997e-05,2]
[347627208,1735980633211,-770.16,9.997e-05,2]
[347627209,1735980633221,-945.81,9.997e-05,2]
[347627210,1735980633230,-500.0,9.997e-05,2]
[347627211,1735980633455,-500.0,9.997e-05,2]
[347627212,1735980633470,-500.0,9.997e-05,2]
[347627213,1735980633480,-500.0,9.997e-05,2]
[347627214,1735980633490,-500.0,9.997e-05,2]
[347627215,1735980633501,-500.0,9.997e-05,2]
[347627216,1735980633511,-500.0,9.997e-05,2]
[347627217,1735980633520,-500.0,9.997e-05,2]
[347627218,1735980633531,-500.0,9.997e-05,2]
[347627219,1735980633545,-567.99097114,9.997e-05,2]
[347627220,1735980633555,-500.0,9.997e-05,2]
[347627221,1735980633565,-500.0,9.997e-05,2]
[347627222,1735980633574,-500.0,9.997e-05,2]
[347627223,1735980633583,-500.0,9.998e-05,2]
[347627224,1735980633593,-510.15508236,9.998e-05,2]
[347627225,1735980633602,-500.0,9.998e-05,2]
[347627226,1735980633612,-500.0,9.998e-05,2]
[347627227,1735980633622,-500.0,9.998e-05,2]
[347627228,1735980633632,-248.26311564,9.998e-05,2]
[347627229,1735980633875,-251.73688436,9.998e-05,2]
[347627230,1735980633886,-500.0,9.998e-05,2]
[347627231,1735980633896,-402.77122351,9.998e-05,2]
[347627232,1735980633912,-97.22877649,9.998e-05,2]
[347627233,1735980633922,-500.0,9.998e-05,2]
[347627234,1735980633932,-500.0,9.998e-05,2]
[347627235,1735980633942,-500.0,9.998e-05,2]
[347627236,1735980633951,-500.0,9.998e-05,2]
[347627237,1735980633960,-500.0,9.998e-05,2]
[347627238,1735980633970,-500.0,9.998e-05,2]
[347627239,1735980633979,-502.04294904,9.998e-05,2]
[347627240,1735980633989,-344.71981106,9.998e-05,2]
[347627242,1735980638062,-222.37918786,9.996e-05,2]
[347627243,1735980638072,-500.0,9.997e-05,2]
[347627244,1735980638081,-168.88562534,9.998e-05,2]
[347627245,1735980638090,-500.0,9.998e-05,2]
[347627246,1735980638099,-196.13465102,9.998e-05,2]
[347627247,1735980638171,-315.04213769,9.998e-05,2]
[347627248,1735980638180,-500.0,9.998e-05,2]
[347627249,1735980638190,-503.26677158,9.998e-05,2]
[347627250,1735980638199,-500.0,9.998e-05,2]
[347627251,1735980638208,-219.11497156,9.998e-05,2]
[347627252,1735980638218,-500.0,9.998e-05,2]
[347627253,1735980638227,-500.89996807,9.998e-05,2]
[347627254,1735980638236,-500.0,9.998e-05,2]
[347627255,1735980638245,-500.79850065,9.998e-05,2]
[347627256,1735980638254,-500.58510681,9.998e-05,2]
[347627257,1735980638264,-500.88637861,9.998e-05,2]
[347627258,1735980638273,-51.33437591,9.998e-05,2]
[347627259,1735980638288,-449.04810843,9.998e-05,2]
[347627260,1735980638299,-500.0,9.998e-05,2]
[347627261,1735980638308,-106.06438748,9.998e-05,2]
[347627262,1735980638319,-394.9506019,9.998e-05,2]
[347627263,1735980638328,-500.0,9.998e-05,2]
[347627264,1735980638338,-500.0,9.998e-05,2]
[347627265,1735980638348,-500.0,9.998e-05,2]
[347627266,1735980638357,-454.89388196,9.998e-05,2]
[347627267,1735980638366,-499.18197178,9.998e-05,2]
[347627268,1735980638375,-500.62189997,9.998e-05,2]
[347627269,1735980638384,-500.59616282,9.998e-05,2]
[347627270,1735980638396,-581.2507375,9.998e-05,2]
[347627272,1735980638405,-367.95022546,9.998e-05,2]
[347627274,1735980638415,-500.53353175,9.998e-05,2]
[347627276,1735980638423,-500.73460745,9.998e-05,2]
[347627278,1735980638433,-500.0,9.998e-05,2]
[347627280,1735980638442,-500.62507229,9.998e-05,2]
[347627281,1735980638451,-500.0,9.998e-05,2]
[347627283,1735980638463,-500.0,9.998e-05,2]
[347627285,1735980638472,-500.0,9.998e-05,2]
[347627287,1735980638481,-500.0,9.998e-05,2]
[347627289,1735980638490,-500.89139139,9.998e-05,2]
[347627291,1735980638499,-501.07823074,9.998e-05,2]
[347627293,1735980638508,-403.68724173,9.998e-05,2]
[347627295,1735980638517,-500.0,9.998e-05,2]
[347627297,1735980638526,-621.98488314,9.998e-05,2]
[347627299,1735980638535,-500.58145908,9.998e-05,2]
[347627300,1735980638544,-500.58125032,9.998e-05,2]
[347627301,1735980638553,-403.25697399,9.998e-05,2]
[347627302,1735980638562,-500.61198834,9.998e-05,2]
[347627303,1735980638571,-500.40647844,9.998e-05,2]
[347627304,1735980638580,-500.62125118,9.998e-05,2]
[347627305,1735980638589,-500.0,9.998e-05,2]
[347627306,1735980638598,-500.88129839,9.998e-05,2]
[347627307,1735980638607,-500.0,9.998e-05,2]
[347627308,1735980638616,-500.0,9.998e-05,2]
[347627309,1735980638625,-500.90222957,9.998e-05,2]
[347627310,1735980638635,-500.67350017,9.998e-05,2]
[347627311,1735980638644,-500.74315529,9.998e-05,2]
[347627312,1735980638653,-500.0,9.998e-05,2]
[347627313,1735980638662,-500.0,9.998e-05,2]
[347627314,1735980638671,-500.32570286,9.998e-05,2]
[347627315,1735980638679,-500.0,9.998e-05,2]
[347627316,1735980638688,-511.09185304,9.998e-05,2]
[347627317,1735980638697,-500.0,9.998e-05,2]
[347627318,1735980638706,-656.21,9.998e-05,2]
[347627319,1735980638715,-308.29067249,9.998e-05,2]
[347627320,1735980638725,-177.55891732,9.998e-05,2]
[347627321,1735980638746,-278.28446868,9.998e-05,2]
[347627322,1735980638755,-500.6247103,9.998e-05,2]
[347627323,1735980638764,-500.58688703,9.998e-05,2]
[347627324,1735980638773,-500.89457236,9.998e-05,2]
[347627325,1735980638782,-379.90492515,9.998e-05,2]
[347627326,1735980638794,-120.09507485,9.998e-05,2]
[347627327,1735980638802,-500.0,9.998e-05,2]
[347627328,1735980638811,-500.22944249,9.998e-05,2]
[347627329,1735980638820,-500.0,9.998e-05,2]
[347627330,1735980638829,-500.0,9.998e-05,2]
[347627331,1735980638838,-500.0,9.998e-05,2]
[347627332,1735980638847,-500.0,9.998e-05,2]
[347627333,1735980638856,-500.59284338,9.998e-05,2]
[347627334,1735980638865,-501.28977194,9.998e-05,2]
[347627335,1735980638873,-510.64287228,9.998e-05,2]
[347627336,1735980638883,-500.47026212,9.998e-05,2]
[347627337,1735980638892,-500.0,9.998e-05,2]
[347627338,1735980638901,-3138.53,9.998e-05,2]
[347627339,1735980638910,-500.0,9.998e-05,2]
[347627340,1735980638919,-500.0,9.998e-05,2]
[347627341,1735980638928,-500.71362049,9.998e-05,2]
[347627342,1735980638937,-500.99312737,9.998e-05,2]
[347627343,1735980638946,-500.0,9.998e-05,2]
[347627344,1735980638955,-582.00015623,9.998e-05,2]
[347627345,1735980638964,-500.0,9.998e-05,2]
[347627346,1735980638973,-500.70408927,9.998e-05,2]
[347627347,1735980638982,-500.0,9.998e-05,2]
[347627348,1735980638991,-500.0,9.998e-05,2]
[347627349,1735980639000,-501.45737282,9.998e-05,2]
[347627350,1735980639009,-500.0,9.998e-05,2]
[347627351,1735980639018,-500.0,9.998e-05,2]
[347627352,1735980639027,-500.0,9.998e-05,2]
[347627353,1735980639037,-500.71589547,9.998e-05,2]
[347627354,1735980639047,-500.0,9.998e-05,2]
[347627355,1735980639057,-756.82,9.998e-05,2]
[347627356,1735980639067,-501.52093346,9.998e-05,2]
[347627357,1735980639076,-500.0,9.998e-05,2]
[347627358,1735980639085,-500.0,9.998e-05,2]
[347627359,1735980639094,-500.71778361,9.998e-05,2]
[347627360,1735980639103,-204.81012536,9.998e-05,2]
[347627361,1735980639113,-1255.73,9.998e-05,2]
[347627362,1735980639124,-765.99,9.998e-05,2]
[347627363,1735980639133,-500.0,9.998e-05,2]
[347627364,1735980639142,-500.0,9.998e-05,2]
[347627365,1735980639151,-318.33195631,9.998e-05,2]
[347627366,1735980639163,-182.22032119,9.998e-05,2]
[347627367,1735980639173,-501.01391113,9.998e-05,2]
[347627368,1735980639183,-500.35022838,9.998e-05,2]
[347627369,1735980639196,-500.0,9.998e-05,2]
[347627370,1735980639205,-500.75697767,9.998e-05,2]
[347627371,1735980639214,-500.0,9.998e-05,2]
[347627372,1735980639224,-500.0,9.998e-05,2]
[347627373,1735980639234,-500.0,9.998e-05,2]
[347627374,1735980639244,-500.44197472,9.998e-05,2]
[347627375,1735980639254,-500.0,9.998e-05,2]
[347627376,1735980639262,-500.0,9.998e-05,2]
[347627377,1735980639272,-500.0,9.998e-05,2]
[347627378,1735980639282,-501.42070614,9.998e-05,2]
[347627379,1735980639291,-259.53176089,9.998e-05,2]
[347627380,1735980639302,-572.73,9.998e-05,2]
[347627381,1735980639311,-500.794998,9.998e-05,2]
[347627382,1735980639323,-500.14777401,9.998e-05,2]
[347627383,1735980639333,-500.0,9.998e-05,2]
[347627384,1735980639344,-601.69,9.998e-05,2]
[347627385,1735980639354,-484.68113079,9.998e-05,2]
[347627386,1735980639363,-455.99073021,9.998e-05,2]
[347627387,1735980639372,-500.43093888,9.998e-05,2]
[347627388,1735980639382,-500.0,9.998e-05,2]
[347627389,1735980639391,-500.78730634,9.998e-05,2]
[347627390,1735980639401,-501.01375877,9.998e-05,2]
[347627391,1735980639410,-500.0,9.998e-05,2]
[347627392,1735980639419,-539.14687361,9.998e-05,2]
[347627393,1735980639432,-500.56809024,9.998e-05,2]
[347627394,1735980639441,-500.82382382,9.998e-05,2]
[347627395,1735980639450,-500.0,9.998e-05,2]
[347627396,1735980639462,-500.0,9.998e-05,2]
[347627397,1735980639471,-2401.11,9.998e-05,2]
[347627398,1735980639481,-500.0,9.998e-05,2]
[347627399,1735980639490,-500.0,9.998e-05,2]
[347627400,1735980639500,-537.70158901,9.998e-05,2]
[347627401,1735980639509,-500.0,9.998e-05,2]
[347627402,1735980639518,-500.6858398,9.998e-05,2]
[347627403,1735980639527,-500.0,9.998e-05,2]
[347627404,1735980639536,-500.47720202,9.998e-05,2]
[347627405,1735980639546,-500.0,9.998e-05,2]
[347627406,1735980639555,-500.0,9.998e-05,2]
[347627407,1735980639567,-501.29431223,9.998e-05,2]
[347627408,1735980639578,-581.63954465,9.998e-05,2]
[347627409,1735980639587,-700.93,9.998e-05,2]
[347627410,1735980639596,-500.3937473,9.998e-05,2]
[347627411,1735980639606,-500.70350735,9.998e-05,2]
[347627412,1735980639616,-500.70847103,9.998e-05,2]
[347627413,1735980639626,-500.0,9.998e-05,2]
[347627414,1735980639635,-1762.64,9.998e-05,2]
[347627415,1735980639646,-500.0,9.998e-05,2]
[347627416,1735980639655,-500.68493499,9.998e-05,2]
[347627417,1735980639665,-500.0,9.998e-05,2]
[347627418,1735980639674,-501.46323877,9.998e-05,2]
[347627419,1735980639684,-500.84905799,9.998e-05,2]
[347627420,1735980639694,-579.35161067,9.998e-05,2]
[347627421,1735980639703,-645.56,9.998e-05,2]
[347627422,1735980639712,-629.82,9.998e-05,2]
[347627423,1735980639721,-500.35960262,9.998e-05,2]
[347627424,1735980639730,-259.00110942,9.998e-05,2]
[347627425,1735980639739,-500.0,9.998e-05,2]
[347627426,1735980639749,-500.0,9.998e-05,2]
[347627427,1735980639758,-211.46117744,9.998e-05,2]
[347627428,1735980639767,-500.0,9.998e-05,2]
[347627429,1735980639777,-500.0,9.998e-05,2]
[347627430,1735980639786,-378.87343267,9.998e-05,2]
[347627441,1735980640107,-122.09639042,9.998e-05,2]
[347627442,1735980640117,-500.65681682,9.998e-05,2]
[347627444,1735980640127,-331.62679276,9.998e-05,2]
[347627445,1735980640140,-170.93383776,9.998e-05,2]
[347627446,1735980640150,-500.0,9.998e-05,2]
[347627447,1735980640159,-431.01575676,9.998e-05,2]
[347627448,1735980640167,-500.0,9.998e-05,2]
[347627449,1735980640176,-500.0,9.998e-05,2]
[347627450,1735980640185,-500.0,9.998e-05,2]
[347627451,1735980640195,-501.69087654,9.998e-05,2]
[347627452,1735980640204,-500.0,9.998e-05,2]
[347627453,1735980640213,-500.0,9.998e-05,2]
[347627454,1735980640222,-500.0,9.998e-05,2]
[347627455,1735980640232,-501.62714505,9.998e-05,2]
[347627456,1735980640241,-501.2652021,9.998e-05,2]
[347627457,1735980640250,-501.29208118,9.998e-05,2]
[347627458,1735980640261,-500.0,9.998e-05,2]
[347627459,1735980640270,-500.0,9.998e-05,2]
[347627460,1735980640280,-500.6244031,9.998e-05,2]
[347627461,1735980640290,-501.51236171,9.998e-05,2]
[347627462,1735980640299,-514.00100777,9.998e-05,2]
[347627463,1735980640308,-317.61679799,9.998e-05,2]
[347627464,1735980640329,-182.38320201,9.998e-05,2]
[347627465,1735980640339,-211.41098247,9.999e-05,2]
[347627466,1735980640350,-1932.68315467,9.999e-05,2]
[347627467,1735980640384,-1925.13775293,9.999e-05,2]
[347627468,1735980640440,-3218.182826,9.999e-05,2]
[347627519,1735980643320,-346.250014,9.898e-05,2]
[347627520,1735980643377,-153.749986,9.898e-05,2]
[347627521,1735980643387,-500.0,9.996e-05,2]
[347627522,1735980643396,-500.0,9.998e-05,2]
[347627523,1735980643406,-500.6100366,9.998e-05,2]
[347627524,1735980643415,-159.4398774,9.998e-05,2]
[347627525,1735980643433,-341.29185846,9.998e-05,2]
[347627526,1735980643442,-932.3,9.998e-05,2]
[347627527,1735980643452,-15340.64583025,9.999e-05,2]
[347627528,1735980643467,-3500.01320469,9.999e-05,2]
[347627560,1735980646098,-191.68839425,9.898e-05,2]
[347627561,1735980646108,-320.65400537,9.996e-05,2]
[347627562,1735980646152,-222.99599463,9.996e-05,2]
[347627563,1735980646161,-500.91766186,9.998e-05,2]
[347627564,1735980646170,-502.59935883,9.998e-05,2]
[347627565,1735980646181,-16321.10851485,9.999e-05,2]
[347627566,1735980646192,-501.23901359,9.999e-05,2]
[347627567,1735980646201,-500.0,9.999e-05,2]
[347627568,1735980646210,-500.78075209,9.999e-05,2]
[347627569,1735980646219,-500.65194761,9.999e-05,2]
[347627570,1735980646230,-501.18137274,9.999e-05,2]
[347627571,1735980646239,-578.7053826,9.999e-05,2]
[347627572,1735980646248,-500.0,9.999e-05,2]
[347627573,1735980646257,-500.0,9.999e-05,2]
[347627574,1735980646266,-500.0,9.999e-05,2]
[347627575,1735980646275,-502.53894419,9.999e-05,2]
[347627576,1735980646286,-502.60047069,9.999e-05,2]
[347627577,1735980646297,-503.43731826,9.999e-05,2]
[347627578,1735980646306,-504.86846059,9.999e-05,2]
[347627579,1735980646315,-503.28895436,9.999e-05,2]
[347627580,1735980646324,-500.0,9.999e-05,2]
[347627581,1735980646333,-501.39450922,9.999e-05,2]
[347627582,1735980646342,-614.3699279,9.999e-05,2]
[347627583,1735980646351,-501.87977818,9.999e-05,2]
[347627584,1735980646360,-501.83919473,9.999e-05,2]
[347627585,1735980646369,-639.61302466,9.999e-05,2]
[347627586,1735980646378,-631.13296481,9.999e-05,2]
[347627587,1735980646387,-502.32870991,9.999e-05,2]
[347627588,1735980646396,-500.0,9.999e-05,2]
[347627589,1735980646406,-500.23785955,9.999e-05,2]
[347627590,1735980646415,-501.03342001,9.999e-05,2]
[347627591,1735980646425,-500.23495384,9.999e-05,2]
[347627592,1735980646434,-505.21482712,9.999e-05,2]
[347627593,1735980646443,-500.35151937,9.999e-05,2]
[347627594,1735980646452,-500.0,9.999e-05,2]
[347627595,1735980646463,-500.0,9.999e-05,2]
[347627596,1735980646473,-501.41718485,9.999e-05,2]
[347627597,1735980646484,-500.0,9.999e-05,2]
[347627599,1735980646493,-500.0,9.999e-05,2]
[347627601,1735980646502,-500.0,9.999e-05,2]
[347627603,1735980646511,-502.78877249,9.999e-05,2]
[347627605,1735980646520,-500.0,9.999e-05,2]
[347627607,1735980646529,-596.34,9.999e-05,2]
[347627609,1735980646538,-500.36211489,9.999e-05,2]
[347627611,1735980646547,-502.05413288,9.999e-05,2]
[347627613,1735980646557,-500.72093452,9.999e-05,2]
[347627614,1735980646565,-501.40122186,9.999e-05,2]
[347627615,1735980646574,-500.0,9.999e-05,2]
[347627616,1735980646583,-3.24284092,9.999e-05,2]
[347627618,1735980646596,-496.75715908,9.999e-05,2]
[347627619,1735980646605,-500.119461,9.999e-05,2]
[347627620,1735980646615,-500.0,9.999e-05,2]